[Event "35th European Club Cup 2019"]
[Site "Ulcinj"]
[Date "2019.11.10"]
[Round "1.4"]
[White "Lavendelis, Egons"]
[Black "Smith, Axel"]
[Result "1/2-1/2"]
[ECO "A06"]
[WhiteElo "2289"]
[BlackElo "2465"]
[Annotator "ChessBase"]
[PlyCount "70"]
[EventDate "2019.11.10"]
[EventType "team-tourn"]
[EventCountry "MNE"]
[SourceTitle "playchess.com"]
[Source "ChessBase"]
[SourceQuality "1"]
[WhiteTeam "Wasa SK"]
[BlackTeam "Koge SK"]
[TimeControl "40/5400+30:1800+30"]

1. Nf3 d5 {[%emt 0:03:49]} 2. g3 g6 {[%emt 0:00:30]} 3. Bg2 {[%emt 0:00:48]} Bg7 {[%emt 0:00:02]} 4. d4 {[%emt 0:00:15]} Nf6 {[%emt 0:01:38]} 5. O-O {[%emt 0:03:20]} c6 {[%emt 0:00:39]} 6. Nbd2 {[%emt 0:04:35]} O-O {[%emt 0:01:34]} 7. b3 {[%emt 0:03:47]} a5 {[%emt 0:03:20]} 8. a4 {[%emt 0:06:58]} Ne4 {[%emt 0:12:00]} 9. Bb2 {[%emt 0:02:24]} Bf5 {[%emt 0:00:10]} 10. Nh4 {[%emt 0:06:19]} Nxd2 {[%emt 0:05:00]} 11. Qxd2 {[%emt 0:03:38]} Be6 {[%emt 0:00:14]} 12. f4 {[%emt 0:01:18]} f5 {[%emt 0:01:33]} 13. Nf3 {[%emt 0:05:52]} Nd7 {[%emt 0:00:49]} 14. Ng5 {[%emt 0:04:08]} Bf7 {[%emt 0:01:38]} 15. c4 {[%emt 0:01:28]} e6 {[%emt 0:04:36]} 16. e3 {[%emt 0:06:49]} h6 {[%emt 0:05:00]} 17. Nf3 {[%emt 0:06:37]} Qb6 {[%emt 0:11:49]} 18. c5 {[%emt 0:03:42]} Qc7 {[%emt 0:01:35]} 19. Ba3 {[%emt 0:04:32]} Rfb8 {[%emt 0:01:24]} 20. Rfc1 {[%emt 0:09:39]} b6 {[%emt 0:11:05]} 21. cxb6 Rxb6 {[%emt 0:00:25]} 22. b4 {[%emt 0:03:41]} axb4 {[%emt 0:07:14]} 23. Bxb4 {[%emt 0:01:35]} Rba6 {[%emt 0:10:41]} 24. Bf1 {[%emt 0:07:09]} Rxa4 {[%emt 0:03:53]} 25. Rxa4 {[%emt 0:00:02]} Rxa4 {[%emt 0:00:06]} 26. Bb5 Ra8 {[%emt 0:00:56]} 27. Bxc6 {[%emt 0:00:39]} Rc8 {[%emt 0:00:24]} 28. Ba3 {[%emt 0:00:14]} Qa7 {[%emt 0:02:29]} 29. Bxd7 {[%emt 0:01:34]} Rxc1+ {[%emt 0:02:05]} 30. Qxc1 {[%emt 0:00:05]} Qxd7 {[%emt 0:00:04]} 31. Ne5 {[%emt 0:00:27]} Bxe5 {[%emt 0:00:44]} 32. fxe5 {[%emt 0:00:40]} g5 {[%emt 0:01:57]} 33. Qc5 Kh7 34. Qe7 {[%emt 0:05:17]} Qxe7 {[%emt 0:00:57]} 35. Bxe7 {[%emt 0:00:06]} Kg6 {[%emt 0:00:19]} 1/2-1/2

[Event "35th European Club Cup 2019"]
[Site "Ulcinj"]
[Date "2019.11.10"]
[Round "1.6"]
[White "Nedev, Trajko"]
[Black "Bikady, Claude"]
[Result "1-0"]
[ECO "C05"]
[WhiteElo "2500"]
[BlackElo "1912"]
[Annotator "ChessBase"]
[PlyCount "51"]
[EventDate "2019.11.10"]
[EventType "team-tourn"]
[EventCountry "MNE"]
[SourceTitle "playchess.com"]
[Source "ChessBase"]
[SourceQuality "1"]
[WhiteTeam "Alkaloid"]
[BlackTeam "Echiquier Mosan"]
[TimeControl "40/5400+30:1800+30"]

1. e4 {[%emt 0:00:00]} e6 {[%emt 0:00:00]} 2. d4 {[%emt 0:00:00]} d5 {[%emt 0:00:00]} 3. Nd2 {[%emt 0:00:03]} Nf6 {[%emt 0:00:32]} 4. e5 {[%emt 0:00:09]} Nfd7 {[%emt 0:00:09]} 5. Bd3 {[%emt 0:00:24]} c5 {[%emt 0:00:15]} 6. c3 {[%emt 0:00:06]} Nc6 {[%emt 0:00:06]} 7. Ngf3 {[%emt 0:00:07]} g6 {[%emt 0:01:53]} 8. h4 {[%emt 0:00:07]} Qb6 {[%emt 0:00:46]} 9. h5 {[%emt 0:00:19]} g5 {[%emt 0:01:23]} 10. Nxg5 {[%emt 0:00:07]} cxd4 {[%emt 0:00:07]} 11. cxd4 {[%emt 0:00:10]} Qxd4 {[%emt 0:01:02]} 12. Ndf3 {[%emt 0:00:23]} Qb4+ {[%emt 0:00:20]} 13. Bd2 {[%emt 0:00:30]} Qxb2 {[%emt 0:01:01]} 14. Rb1 {[%emt 0:00:18]} Qa3 {[%emt 0:02:12]} 15. Rb3 {[%emt 0:07:14]} Qxa2 {[%emt 0:00:49]} 16. Bb1 {[%emt 0:10:07]} Qa6 {[%emt 0:01:11]} 17. Nxh7 {[%emt 0:01:02]} Be7 {[%emt 0:00:40]} 18. Bg5 {[%emt 0:33:46]} Bxg5 {[%emt 0:52:48]} 19. Nhxg5 {[%emt 0:00:09]} Ke7 {[%emt 0:00:32]} 20. Re3 {[%emt 0:08:02]} Qa5+ {[%emt 0:03:08]} 21. Kf1 {[%emt 0:00:22]} b5 {[%emt 0:01:04]} 22. Qc2 {[%emt 0:08:45]} Qb6 {[%emt 0:00:45]} 23. Nxf7 {[%emt 0:00:59]} Rf8 {[%emt 0:04:13]} 24. N7g5 {[%emt 0:01:24]} Ndxe5 {[%emt 0:13:41]} 25. Nxe5 {[%emt 0:02:19]} Qxe3 {[%emt 0:00:50]} 26. Qh7+ {[%emt 0:00:49]} 1-0

[Event "35th European Club Cup 2019"]
[Site "Ulcinj"]
[Date "2019.11.10"]
[Round "1.6"]
[White "Murzin, Volodar"]
[Black "Petersson, Kjell"]
[Result "1-0"]
[ECO "B51"]
[WhiteElo "2429"]
[BlackElo "1958"]
[Annotator "NA"]
[PlyCount "93"]
[EventDate "2019.11.10"]
[EventType "team-tourn"]
[EventCountry "MNE"]
[SourceTitle "playchess.com"]
[Source "ChessBase"]
[SourceQuality "1"]
[WhiteTeam "Moscow Chess Team"]
[BlackTeam "Lunds ASK"]
[TimeControl "40/5400+30:1800+30"]

1. e4 {[%emt 0:00:00]} c5 {[%emt 0:00:00]} 2. Nf3 {[%emt 0:00:00]} d6 {[%emt 0:00:00]} 3. Bb5+ {[%emt 0:00:00]} Nc6 {[%emt 0:00:00]} 4. O-O {[%emt 0:00:08]} Bd7 {[%emt 0:00:00]} 5. Re1 {[%emt 0:00:09]} a6 {[%emt 0:00:00]} 6. Bf1 {[%emt 0:00:06]} Bg4 {[%emt 0:00:01]} 7. c3 {[%emt 0:01:14]} Nf6 {[%emt 0:00:27]} 8. h3 {[%emt 0:00:12]} Bxf3 {[%emt 0:00:03]} 9. Qxf3 {[%emt 0:00:06]} g6 {[%emt 0:00:18]} 10. d3 {[%emt 0:01:01]} Bg7 {[%emt 0:00:04]} 11. Be3 {[%emt 0:00:16]} Nd7 {[%emt 0:00:09]} 12. Nd2 {[%emt 0:00:27]} O-O {[%emt 0:00:15]} 13. Qd1 {[%emt 0:00:20]} b5 {[%emt 0:00:18]} 14. Nf3 {[%emt 0:00:41]} Nde5 {[%emt 0:11:06]} 15. Nh2 {[%emt 0:02:36]} Rc8 {[%emt 0:06:10]} 16. Rc1 {[%emt 0:08:44]} Na5 {[%emt 0:13:01]} 17. f4 {[%emt 0:10:09]} Nec6 {[%emt 0:04:45]} 18. Nf3 {[%emt 0:00:42]} Qd7 {[%emt 0:07:01]} 19. Qd2 {[%emt 0:03:22]} Rfe8 {[%emt 0:06:58]} 20. b4 {[%emt 0:08:57]} Nb7 {[%emt 0:02:02]} 21. d4 {[%emt 0:01:56]} cxd4 {[%emt 0:01:51]} 22. cxd4 {[%emt 0:02:43]} d5 {[%emt 0:00:40]} 23. e5 {[%emt 0:07:27]} e6 {[%emt 0:02:42]} 24. g4 {[%emt 0:02:35]} Bf8 {[%emt 0:04:52]} 25. Rb1 {[%emt 0:05:00]} Rc7 {[%emt 0:01:21]} 26. Bd3 {[%emt 0:01:18]} Ne7 {[%emt 0:09:00]} 27. Nh4 {[%emt 0:02:22]} Rc6 {[%emt 0:07:21]} 28. f5 {[%emt 0:05:30]} exf5 {[%emt 0:00:32]} 29. gxf5 {[%emt 0:00:18]} Nxf5 {[%emt 0:02:32]} 30. Nxf5 {[%emt 0:01:39]} gxf5 {[%emt 0:00:03]} 31. Kh2 {[%emt 0:03:15]} Qe6 {[%emt 0:10:20]} 32. Rg1+ {[%emt 0:02:36]} Kh8 {[%emt 0:00:12]} 33. Rbf1 {[%emt 0:07:09]} Nd6 {[%emt 0:00:46]} 34. Bg5 {[%emt 0:01:05]} Bg7 {[%emt 0:03:42]} 35. exd6 {[%emt 0:00:19]} Bxd4 {[%emt 0:00:35]} 36. Rg2 {[%emt 0:00:40]} Qxd6+ {[%emt 0:01:34]} 37. Bf4 {[%emt 0:00:15]} Be5 {[%emt 0:00:24]} 38. Bxe5+ {[%emt 0:00:28]} Rxe5 {[%emt 0:02:46]} 39. Qf4 {[%emt 0:00:21]} Rc3 {[%emt 0:03:14]} 40. Qg3 {[%emt 0:00:00]} Re6 {[%emt 0:00:00]} 41. Qxd6 {[%emt 0:02:46]} Rxd6 {[%emt 0:01:22]} 42. Bxf5 {[%emt 0:00:05]} Re3 {[%emt 0:04:12]} 43. Rfg1 {[%emt 0:01:03]} Re8 {[%emt 0:01:14]} 44. Rg7 {[%emt 0:00:12]} Rh6 {[%emt 0:00:06]} 45. Rxf7 {[%emt 0:00:07]} d4 {[%emt 0:01:45]} 46. Bd3 {[%emt 0:00:19]} Rd8 {[%emt 0:01:31]} 47. Rgg7 {[%emt 0:00:27]} 1-0

[Event "35th European Club Cup 2019"]
[Site "Ulcinj"]
[Date "2019.11.10"]
[Round "1.6"]
[White "Wenzel, Birger"]
[Black "Antonsen, Mikkel"]
[Result "0-1"]
[ECO "D71"]
[WhiteElo "2058"]
[BlackElo "2390"]
[Annotator "NA"]
[PlyCount "80"]
[EventDate "2019.11.10"]
[EventType "team-tourn"]
[EventCountry "MNE"]
[SourceTitle "playchess.com"]
[Source "ChessBase"]
[SourceQuality "1"]
[WhiteTeam "Wasa SK"]
[BlackTeam "Koge SK"]
[TimeControl "40/5400+30:1800+30"]

1. c4 g6 2. d4 Nf6 3. g3 c6 4. Bg2 d5 5. Qa4 dxc4 6. Qxc4 Bg7 7. Nf3 O-O 8. O-O Bf5 9. Nc3 Nbd7 10. h3 Rc8 11. Qb3 Qb6 12. Re1 Be6 13. Qd1 Rfd8 14. e4 Bc4 15. b3 Ba6 16. e5 Nd5 17. Na4 Qc7 18. Ng5 b5 19. Nb2 e6 20. Ne4 c5 21. Bg5 cxd4 22. Bxd8 Rxd8 23. f4 Qb6 24. Nd3 Ne3 25. Qd2 Nxg2 26. Kxg2 Bb7 27. Kh2 a5 28. Rac1 Bf8 29. g4 Bd5 30. f5 exf5 31. gxf5 Re8 32. Qf4 a4 33. e6 fxe6 34. f6 e5 35. Qf3 Bh6 36. Rf1 Rf8 37. Qg4 Be6 38. Qh4 Bxc1 39. Rxc1 Bf5 40. Ndf2 Nxf6 0-1

[Event "35th European Club Cup 2019"]
[Site "Ulcinj"]
[Date "2019.11.10"]
[Round "1.8"]
[White "Van der Lende, Ilias"]
[Black "Bosiocic, Marin"]
[Result "0-1"]
[ECO "E53"]
[WhiteElo "2408"]
[BlackElo "2598"]
[Annotator "ChessBase"]
[PlyCount "52"]
[EventDate "2019.11.10"]
[EventType "team-tourn"]
[EventCountry "MNE"]
[SourceTitle "playchess.com"]
[Source "ChessBase"]
[SourceQuality "1"]
[WhiteTeam "Kennemer Combinatie"]
[BlackTeam "Valerenga"]
[TimeControl "40/5400+30:1800+30"]

1. d4 {[%emt 0:00:00]} Nf6 {[%emt 0:00:00]} 2. c4 {[%emt 0:00:00]} e6 {[%emt 0:00:01]} 3. Nc3 {[%emt 0:00:00]} Bb4 {[%emt 0:00:08]} 4. e3 {[%emt 0:00:10]} O-O {[%emt 0:00:08]} 5. Bd3 {[%emt 0:00:09]} d5 {[%emt 0:00:08]} 6. Nf3 {[%emt 0:00:18]} c5 {[%emt 0:00:07]} 7. O-O {[%emt 0:00:10]} b6 {[%emt 0:00:05]} 8. Ne5 {[%emt 0:04:44]} dxc4 {[%emt 0:03:54]} 9. Bxc4 {[%emt 0:00:16]} Bb7 {[%emt 0:00:36]} 10. Qe2 {[%emt 0:08:13]} Nbd7 {[%emt 0:09:51]} 11. Rd1 {[%emt 0:02:13]} Bxc3 {[%emt 0:00:50]} 12. Nxd7 {[%emt 0:09:43]} Qxd7 {[%emt 0:00:06]} 13. bxc3 {[%emt 0:00:09]} Rac8 {[%emt 0:00:43]} 14. Bb5 {[%emt 0:10:22]} Qc7 {[%emt 0:03:05]} 15. a4 {[%emt 0:00:30]} c4 {[%emt 0:06:34]} 16. a5 {[%emt 0:01:20]} Be4 {[%emt 0:00:25]} 17. f3 {[%emt 0:04:57]} Bd3 {[%emt 0:01:39]} 18. Qf2 {[%emt 0:00:36]} Nd5 {[%emt 0:02:09]} 19. Bd2 {[%emt 0:05:46]} f5 {[%emt 0:01:46]} 20. Be1 {[%emt 0:00:08]} bxa5 {[%emt 0:02:32]} 21. Rxd3 {[%emt 0:16:32]} cxd3 {[%emt 0:00:11]} 22. c4 {[%emt 0:00:05]} Nb4 {[%emt 0:01:23]} 23. Bc3 {[%emt 0:00:07]} a6 {[%emt 0:05:00]} 24. Bxb4 {[%emt 0:00:26]} axb4 {[%emt 0:00:05]} 25. Rxa6 {[%emt 0:03:01]} Ra8 {[%emt 0:00:48]} 26. c5 {[%emt 0:02:25]} Qb7 {[%emt 0:00:44]} 0-1

[Event "35th European Club Cup 2019"]
[Site "Ulcinj"]
[Date "2019.11.10"]
[Round "1.10"]
[White "Mesman, Edwyn"]
[Black "Romanov, Evgeny"]
[Result "0-1"]
[ECO "A50"]
[WhiteElo "2156"]
[BlackElo "2597"]
[Annotator "ChessBase"]
[PlyCount "56"]
[EventDate "2019.11.10"]
[EventType "team-tourn"]
[EventCountry "MNE"]
[SourceTitle "playchess.com"]
[Source "ChessBase"]
[SourceQuality "1"]
[WhiteTeam "Kennemer Combinatie"]
[BlackTeam "Valerenga"]
[TimeControl "40/5400+30:1800+30"]

1. d4 {[%emt 0:00:00]} Nf6 {[%emt 0:00:00]} 2. c4 {[%emt 0:00:00]} b6 {[%emt 0:00:05]} 3. Nc3 {[%emt 0:00:24]} Bb7 {[%emt 0:00:07]} 4. a3 {[%emt 0:01:41]} d5 {[%emt 0:03:05]} 5. Bg5 {[%emt 0:04:05]} dxc4 {[%emt 0:01:26]} 6. e3 {[%emt 0:06:06]} Nbd7 {[%emt 0:08:13]} 7. Nf3 {[%emt 0:01:10]} h6 {[%emt 0:06:51]} 8. Bxf6 {[%emt 0:04:25]} Nxf6 {[%emt 0:13:30]} 9. Bxc4 {[%emt 0:00:33]} e6 {[%emt 0:00:04]} 10. O-O {[%emt 0:03:45]} a6 {[%emt 0:01:42]} 11. Qe2 {[%emt 0:11:09]} Be7 {[%emt 0:01:12]} 12. Rfd1 {[%emt 0:01:45]} Nd5 {[%emt 0:03:47]} 13. e4 {[%emt 0:14:54]} Nxc3 {[%emt 0:00:53]} 14. bxc3 {[%emt 0:00:15]} O-O {[%emt 0:00:19]} 15. a4 {[%emt 0:10:24]} Qe8 {[%emt 0:00:19]} 16. Bd3 {[%emt 0:03:13]} a5 {[%emt 0:08:37]} 17. Ne5 {[%emt 0:04:43]} f6 {[%emt 0:04:14]} 18. Nf3 {[%emt 0:05:44]} e5 {[%emt 0:03:12]} 19. Nh4 {[%emt 0:04:20]} Kh7 {[%emt 0:11:04]} 20. Qg4 {[%emt 0:04:20]} Rd8 {[%emt 0:01:22]} 21. f4 {[%emt 0:09:46]} Bc8 {[%emt 0:02:48]} 22. f5 {[%emt 0:00:07]} exd4 {[%emt 0:00:35]} 23. cxd4 {[%emt 0:02:46]} Rxd4 {[%emt 0:01:12]} 24. Bb5 {[%emt 0:00:10]} Rxe4 {[%emt 0:07:55]} 25. Qg3 {[%emt 0:00:23]} Qh5 {[%emt 0:02:07]} 26. Ng6 {[%emt 0:00:48]} Rf7 {[%emt 0:02:46]} 27. Bd3 {[%emt 0:01:21]} Bc5+ {[%emt 0:00:54]} 28. Kh1 {[%emt 0:00:06]} Bd6 {[%emt 0:02:09]} 0-1

[Event "35th European Club Cup 2019"]
[Site "Ulcinj"]
[Date "2019.11.10"]
[Round "1.12"]
[White "Duijn, Rob"]
[Black "Stenersen, Gudmund"]
[Result "1/2-1/2"]
[ECO "D13"]
[WhiteElo "2220"]
[BlackElo "2188"]
[Annotator "NA"]
[PlyCount "78"]
[EventDate "2019.11.10"]
[EventType "team-tourn"]
[EventCountry "MNE"]
[SourceTitle "playchess.com"]
[Source "ChessBase"]
[SourceQuality "1"]
[WhiteTeam "Kennemer Combinatie"]
[BlackTeam "Valerenga"]
[TimeControl "40/5400+30:1800+30"]

1. d4 {[%emt 0:00:00]} d5 {[%emt 0:00:00]} 2. c4 {[%emt 0:00:00]} e6 {[%emt 0:00:00]} 3. Nc3 {[%emt 0:00:00]} Nf6 {[%emt 0:00:01]} 4. Bg5 {[%emt 0:00:27]} c6 {[%emt 0:00:30]} 5. e3 {[%emt 0:00:34]} a6 {[%emt 0:00:33]} 6. cxd5 {[%emt 0:00:52]} cxd5 {[%emt 0:00:40]} 7. Bd3 {[%emt 0:01:02]} Nc6 {[%emt 0:00:26]} 8. Nf3 {[%emt 0:00:46]} Be7 {[%emt 0:02:51]} 9. O-O {[%emt 0:01:22]} O-O {[%emt 0:05:23]} 10. Rc1 {[%emt 0:02:10]} Bd7 {[%emt 0:03:27]} 11. Bb1 {[%emt 0:12:25]} Rc8 {[%emt 0:04:01]} 12. Qc2 {[%emt 0:03:37]} g6 {[%emt 0:01:33]} 13. Bh6 {[%emt 0:04:11]} Re8 {[%emt 0:00:37]} 14. Qd1 {[%emt 0:07:19]} b5 {[%emt 0:02:39]} 15. Ne5 {[%emt 0:07:10]} b4 {[%emt 0:15:42]} 16. Ne2 {[%emt 0:04:05]} Nxe5 {[%emt 0:05:08]} 17. dxe5 {[%emt 0:00:23]} Nh5 {[%emt 0:13:26]} 18. Nd4 {[%emt 0:05:24]} Qb6 {[%emt 0:06:09]} 19. Qf3 {[%emt 0:14:15]} Rxc1 {[%emt 0:01:58]} 20. Rxc1 {[%emt 0:00:04]} Rc8 {[%emt 0:00:29]} 21. Rxc8+ {[%emt 0:00:31]} Bxc8 {[%emt 0:00:10]} 22. g4 {[%emt 0:01:40]} Ng7 {[%emt 0:01:43]} 23. Bd3 {[%emt 0:08:15]} Qc7 {[%emt 0:03:58]} 24. Qe2 {[%emt 0:00:41]} a5 {[%emt 0:03:25]} 25. f4 {[%emt 0:02:28]} Bd7 {[%emt 0:01:59]} 26. Kg2 {[%emt 0:01:19]} f6 {[%emt 0:03:59]} 27. Bb5 {[%emt 0:13:36]} fxe5 {[%emt 0:01:08]} 28. fxe5 {[%emt 0:00:38]} Bxb5 {[%emt 0:04:38]} 29. Qxb5 {[%emt 0:00:06]} Qxe5 {[%emt 0:01:38]} 30. Bxg7 {[%emt 0:03:36]} Kxg7 {[%emt 0:00:21]} 31. Qd7 {[%emt 0:02:17]} Kf6 {[%emt 0:07:32]} 32. Kf3 {[%emt 0:01:04]} Bc5 {[%emt 0:02:14]} 33. g5+ {[%emt 0:01:18]} Qxg5 {[%emt 0:01:53]} 34. Qd8+ {[%emt 0:00:57]} Be7 {[%emt 0:00:36]} 35. Qh8+ {[%emt 0:00:02]} Kf7 {[%emt 0:00:52]} 36. Qxh7+ {[%emt 0:00:04]} Kf6 {[%emt 0:02:10]} 37. Qh8+ {[%emt 0:02:20]} Kf7 {[%emt 0:00:09]} 38. Qh7+ {[%emt 0:00:19]} Kf6 {[%emt 0:00:22]} 39. Qh8+ Kf7 1/2-1/2

[Event "35th European Club Cup 2019"]
[Site "Ulcinj"]
[Date "2019.11.10"]
[Round "1.13"]
[White "Cirovic, Miroljub"]
[Black "Efimenko, Zahar"]
[Result "0-1"]
[ECO "B07"]
[WhiteElo "2241"]
[BlackElo "2601"]
[Annotator "ChessBase"]
[PlyCount "82"]
[EventDate "2019.11.10"]
[EventType "team-tourn"]
[EventCountry "MNE"]
[SourceTitle "playchess.com"]
[Source "ChessBase"]
[SourceQuality "1"]
[WhiteTeam "Rudar"]
[BlackTeam "Beer Sheva"]
[TimeControl "40/5400+30:1800+30"]

1. d4 {[%emt 0:00:00]} d6 {[%emt 0:00:12]} 2. e4 {[%emt 0:00:15]} g6 {[%emt 0:00:19]} 3. Nc3 {[%emt 0:00:21]} Nf6 {[%emt 0:00:16]} 4. h3 {[%emt 0:03:25]} Bg7 {[%emt 0:08:15]} 5. Be3 {[%emt 0:00:41]} c6 {[%emt 0:01:31]} 6. g3 {[%emt 0:02:40]} O-O {[%emt 0:04:02]} 7. Bg2 {[%emt 0:00:08]} e5 {[%emt 0:01:41]} 8. Nge2 {[%emt 0:01:26]} b5 {[%emt 0:04:29]} 9. a3 {[%emt 0:00:17]} Nbd7 {[%emt 0:03:30]} 10. O-O {[%emt 0:00:43]} Bb7 {[%emt 0:05:22]} 11. Qd2 {[%emt 0:02:27]} a6 {[%emt 0:08:41]} 12. Rad1 {[%emt 0:04:14]} Qc7 {[%emt 0:10:37]} 13. dxe5 {[%emt 0:07:38]} dxe5 {[%emt 0:01:10]} 14. Bh6 {[%emt 0:01:30]} a5 {[%emt 0:11:42]} 15. Bxg7 {[%emt 0:02:15]} Kxg7 {[%emt 0:00:05]} 16. g4 {[%emt 0:03:13]} Rad8 {[%emt 0:05:36]} 17. Ng3 {[%emt 0:01:48]} h6 {[%emt 0:02:45]} 18. g5 {[%emt 0:00:43]} hxg5 {[%emt 0:02:41]} 19. Qxg5 {[%emt 0:05:23]} Nh7 {[%emt 0:00:03]} 20. Qc1 {[%emt 0:02:34]} b4 {[%emt 0:01:05]} 21. axb4 {[%emt 0:00:06]} axb4 {[%emt 0:00:02]} 22. Nce2 {[%emt 0:00:09]} Ba6 {[%emt 0:00:34]} 23. Rd2 {[%emt 0:03:04]} Nc5 {[%emt 0:01:14]} 24. Rfd1 {[%emt 0:02:51]} Ne6 {[%emt 0:02:32]} 25. c3 {[%emt 0:06:04]} Bxe2 {[%emt 0:04:36]} 26. Nxe2 {[%emt 0:00:06]} Rxd2 {[%emt 0:05:38]} 27. Qxd2 {[%emt 0:00:26]} Rd8 {[%emt 0:00:46]} 28. Qc1 {[%emt 0:00:09]} Rxd1+ {[%emt 0:00:28]} 29. Qxd1 {[%emt 0:00:04]} bxc3 {[%emt 0:00:18]} 30. bxc3 {[%emt 0:00:05]} Nf6 {[%emt 0:00:14]} 31. h4 {[%emt 0:02:09]} Nh5 {[%emt 0:00:53]} 32. Bh3 {[%emt 0:00:20]} Nef4 {[%emt 0:00:41]} 33. Bg4 {[%emt 0:00:06]} Nxe2+ {[%emt 0:07:19]} 34. Bxe2 {[%emt 0:00:16]} Nf4 {[%emt 0:00:10]} 35. h5 {[%emt 0:00:18]} Qa5 {[%emt 0:04:19]} 36. hxg6 {[%emt 0:00:34]} fxg6 {[%emt 0:00:36]} 37. c4 {[%emt 0:01:40]} Qc7 {[%emt 0:01:55]} 38. Bg4 {[%emt 0:00:23]} c5 {[%emt 0:00:53]} 39. Qa4 {[%emt 0:00:28]} Qb7 {[%emt 0:01:08]} 40. Qb5 {[%emt 0:00:00]} Qxe4 {[%emt 0:00:00]} 41. Qxc5 {[%emt 0:02:32]} Qg2# {[%emt 0:00:55]} 0-1

[Event "35th European Club Cup 2019"]
[Site "Ulcinj"]
[Date "2019.11.10"]
[Round "1.17"]
[White "Vuckovic, Marko"]
[Black "Babula, Vlastimil"]
[Result "0-1"]
[ECO "B43"]
[WhiteElo "2054"]
[BlackElo "2572"]
[Annotator "ChessBase"]
[PlyCount "58"]
[EventDate "2019.11.10"]
[EventType "team-tourn"]
[EventCountry "MNE"]
[SourceTitle "playchess.com"]
[Source "ChessBase"]
[SourceQuality "1"]
[WhiteTeam "Buducnost"]
[BlackTeam "Novy Bor"]
[TimeControl "40/5400+30:1800+30"]

1. e4 {[%emt 0:00:00]} c5 {[%emt 0:00:00]} 2. Nf3 {[%emt 0:00:00]} e6 {[%emt 0:00:03]} 3. d4 {[%emt 0:00:11]} cxd4 {[%emt 0:00:06]} 4. Nxd4 {[%emt 0:00:24]} a6 {[%emt 0:00:27]} 5. Nc3 {[%emt 0:00:37]} Qc7 {[%emt 0:00:57]} 6. g3 {[%emt 0:00:56]} Nc6 {[%emt 0:07:21]} 7. Bg2 {[%emt 0:03:55]} Nge7 {[%emt 0:03:14]} 8. O-O {[%emt 0:09:59]} Nxd4 {[%emt 0:01:18]} 9. Qxd4 {[%emt 0:00:04]} Nc6 {[%emt 0:00:21]} 10. Qd2 {[%emt 0:09:17]} Be7 {[%emt 0:14:50]} 11. b3 {[%emt 0:01:53]} O-O {[%emt 0:01:29]} 12. Bb2 {[%emt 0:00:25]} d6 {[%emt 0:01:30]} 13. Nd1 {[%emt 0:06:09]} b5 {[%emt 0:09:03]} 14. Ne3 {[%emt 0:01:45]} Bb7 {[%emt 0:00:39]} 15. f4 {[%emt 0:03:11]} Rfd8 {[%emt 0:02:13]} 16. Kh1 {[%emt 0:04:40]} Rac8 {[%emt 0:00:25]} 17. Rac1 {[%emt 0:00:19]} Qb8 {[%emt 0:05:32]} 18. Qe2 {[%emt 0:10:28]} Qa7 {[%emt 0:18:02]} 19. Rfe1 {[%emt 0:09:00]} Bf8 {[%emt 0:03:59]} 20. c4 {[%emt 0:07:32]} bxc4 {[%emt 0:04:25]} 21. Nxc4 {[%emt 0:00:14]} a5 {[%emt 0:01:32]} 22. Red1 {[%emt 0:01:41]} a4 {[%emt 0:05:03]} 23. Qg4 {[%emt 0:03:17]} Nb4 {[%emt 0:04:36]} 24. a3 {[%emt 0:04:47]} Na2 {[%emt 0:01:57]} 25. Ra1 {[%emt 0:00:15]} axb3 {[%emt 0:00:38]} 26. Nxd6 {[%emt 0:00:51]} Rxd6 {[%emt 0:05:01]} 27. Rxd6 {[%emt 0:00:17]} Qf2 {[%emt 0:01:56]} 28. Be5 {[%emt 0:07:01]} Rc2 {[%emt 0:02:10]} 29. Rg1 {[%emt 0:00:58]} Bxe4 {[%emt 0:00:37]} 0-1

[Event "35th European Club Cup 2019"]
[Site "Ulcinj"]
[Date "2019.11.10"]
[Round "1.18"]
[White "Kriebel, Tadeas"]
[Black "Sukovic, Darko"]
[Result "1-0"]
[ECO "D30"]
[WhiteElo "2516"]
[BlackElo "1991"]
[Annotator "ChessBase"]
[PlyCount "61"]
[EventDate "2019.11.10"]
[EventType "team-tourn"]
[EventCountry "MNE"]
[SourceTitle "playchess.com"]
[Source "ChessBase"]
[SourceQuality "1"]
[WhiteTeam "Novy Bor"]
[BlackTeam "Buducnost"]
[TimeControl "40/5400+30:1800+30"]

1. Nf3 {[%emt 0:00:00]} Nf6 {[%emt 0:00:00]} 2. c4 {[%emt 0:00:00]} e6 {[%emt 0:00:08]} 3. g3 {[%emt 0:00:00]} Be7 {[%emt 0:00:38]} 4. Bg2 {[%emt 0:00:05]} O-O {[%emt 0:00:44]} 5. O-O {[%emt 0:00:10]} d5 {[%emt 0:02:35]} 6. d4 {[%emt 0:01:49]} c5 {[%emt 0:09:20]} 7. cxd5 {[%emt 0:04:14]} exd5 {[%emt 0:00:25]} 8. dxc5 {[%emt 0:00:14]} Bxc5 {[%emt 0:00:20]} 9. a3 {[%emt 0:00:08]} a5 {[%emt 0:12:01]} 10. Nc3 {[%emt 0:00:28]} h6 {[%emt 0:03:15]} 11. Bf4 {[%emt 0:02:13]} Nc6 {[%emt 0:04:29]} 12. Rc1 {[%emt 0:03:34]} Be6 {[%emt 0:07:01]} 13. Ne5 {[%emt 0:13:18]} Ba7 {[%emt 0:09:01]} 14. Nb5 {[%emt 0:11:15]} Bb8 {[%emt 0:19:33]} 15. Nxc6 {[%emt 0:01:43]} bxc6 {[%emt 0:00:13]} 16. Bxb8 {[%emt 0:00:48]} Qxb8 {[%emt 0:05:44]} 17. Nd4 {[%emt 0:00:06]} Qxb2 {[%emt 0:04:27]} 18. Qd3 {[%emt 0:00:10]} c5 {[%emt 0:07:23]} 19. Rxc5 {[%emt 0:01:26]} Rfc8 {[%emt 0:01:10]} 20. Nc6 {[%emt 0:11:37]} Rc7 {[%emt 0:04:00]} 21. Rb1 {[%emt 0:05:37]} Qa2 {[%emt 0:00:16]} 22. Rbc1 {[%emt 0:00:17]} Kh8 {[%emt 0:00:20]} 23. R5c2 {[%emt 0:00:42]} Rxc6 {[%emt 0:00:17]} 24. Rxc6 {[%emt 0:00:06]} Rb8 {[%emt 0:00:42]} 25. R6c2 {[%emt 0:01:34]} Rb1 {[%emt 0:02:32]} 26. Rc8+ {[%emt 0:00:45]} Bxc8 {[%emt 0:00:06]} 27. Qxb1 {[%emt 0:00:04]} Qxb1 {[%emt 0:00:25]} 28. Rxb1 {[%emt 0:00:05]} Ba6 {[%emt 0:01:07]} 29. e3 {[%emt 0:00:22]} Bc4 {[%emt 0:01:27]} 30. Rb8+ {[%emt 0:00:06]} Kh7 {[%emt 0:00:03]} 31. Ra8 {[%emt 0:00:06]} 1-0